[Event "Titled Tuesday Blitz May 30 Late 2023"]
[White "Gerbelli Neto, Eduardo"]
[Black "Curtis, John"]
[WhiteFideId "2103281"]
[BlackFideId "3200256"]
[WhiteElo "2178"]
[BlackElo "2203"]
[Result "0-1"]
[Round "05"]
[TimeControl "180+2"]
[Date "2023.05.31"]
[WhiteClock "0:00:01"]
[BlackClock "0:00:15"]

1. e4 {[%clk 0:02:52]}  Nf6 {[%clk 0:02:58]} 2. Nc3 {[%clk 0:02:51]}  e6 {[%clk 0:02:56]} 3. d4 {[%clk 0:02:48]}  d5 {[%clk 0:02:55]} 4. e5 {[%clk 0:02:48]}  Nfd7 {[%clk 0:02:54]} 5. Nf3 {[%clk 0:02:49]}  c5 {[%clk 0:02:54]} 6. dxc5 {[%clk 0:02:50]}  Nxc5 {[%clk 0:02:52]} 7. Be2 {[%clk 0:02:40]}  b6 {[%clk 0:02:51]} 8. O-O {[%clk 0:02:39]}  Ba6 {[%clk 0:02:51]} 9. Nb5 {[%clk 0:02:34]}  Qd7 {[%clk 0:02:47]} 10. a4 {[%clk 0:02:34]}  Nxa4 {[%clk 0:02:42]} 11. Nd6+ {[%clk 0:02:13]}  Bxd6 {[%clk 0:02:39]} 12. Bxa6 {[%clk 0:02:14]}  Nxa6 {[%clk 0:02:37]} 13. exd6 {[%clk 0:02:14]}  N4c5 {[%clk 0:02:13]} 14. Bf4 {[%clk 0:02:06]}  f6 {[%clk 0:02:10]} 15. Re1 {[%clk 0:02:03]}  O-O {[%clk 0:02:06]} 16. c3 {[%clk 0:01:58]}  Nb8 {[%clk 0:01:59]} 17. Bg3 {[%clk 0:01:41]}  Ne4 {[%clk 0:01:57]} 18. Nd4 {[%clk 0:01:24]}  Re8 {[%clk 0:01:33]} 19. c4 {[%clk 0:00:49]}  Nc6 {[%clk 0:01:24]} 20. Nb5 {[%clk 0:00:42]}  Nxg3 {[%clk 0:00:54]} 21. hxg3 {[%clk 0:00:40]}  Na5 {[%clk 0:00:44]} 22. Nc7 {[%clk 0:00:34]}  Nxc4 {[%clk 0:00:40]} 23. Nxe8 {[%clk 0:00:30]}  Rxe8 {[%clk 0:00:38]} 24. Qd4 {[%clk 0:00:20]}  Nxd6 {[%clk 0:00:31]} 25. Rac1 {[%clk 0:00:13]}  Nf5 {[%clk 0:00:25]} 26. Qd3 {[%clk 0:00:12]}  h5 {[%clk 0:00:24]} 27. Rc2 {[%clk 0:00:09]}  Qf7 {[%clk 0:00:24]} 28. Rec1 {[%clk 0:00:09]}  Re7 {[%clk 0:00:20]} 29. Rc8+ {[%clk 0:00:09]}  Kh7 {[%clk 0:00:20]} 30. f3 {[%clk 0:00:09]}  Qg6 {[%clk 0:00:19]} 31. g4 {[%clk 0:00:07]}  hxg4 {[%clk 0:00:18]} 32. Kf2 {[%clk 0:00:07]}  g3+ {[%clk 0:00:18]} 33. Ke2 {[%clk 0:00:05]}  Qh6 {[%clk 0:00:16]} 34. f4 {[%clk 0:00:01]}  Qxf4 {[%clk 0:00:15]} 35. Rh1+ {[%clk 0:00:01]}  Kg6 {[%clk 0:00:15]} 0-1


[Site "https://www.chess.com"]

[Event "Titled Tuesday Blitz May 30 Late 2023"]
[White "Delorme, Alban"]
[Black "Zenin, Dmitry"]
[WhiteFideId "623636"]
[BlackFideId "4127897"]
[WhiteElo "2196"]
[BlackElo "2215"]
[Result "1/2-1/2"]
[Round "05"]
[TimeControl "180+2"]
[Date "2023.05.31"]
[WhiteClock "0:00:05"]
[BlackClock "0:00:03"]

1. e4 {[%clk 0:03:00]}  e5 {[%clk 0:02:59]} 2. Nf3 {[%clk 0:03:00]}  Nc6 {[%clk 0:02:58]} 3. Bc4 {[%clk 0:03:01]}  Bc5 {[%clk 0:02:57]} 4. c3 {[%clk 0:03:01]}  Nf6 {[%clk 0:02:57]} 5. d4 {[%clk 0:03:02]}  exd4 {[%clk 0:02:57]} 6. b4 {[%clk 0:03:02]}  Bb6 {[%clk 0:02:51]} 7. e5 {[%clk 0:03:02]}  d5 {[%clk 0:02:51]} 8. exf6 {[%clk 0:03:02]}  dxc4 {[%clk 0:02:49]} 9. Qe2+ {[%clk 0:03:03]}  Be6 {[%clk 0:02:46]} 10. b5 {[%clk 0:03:04]}  Na5 {[%clk 0:02:26]} 11. fxg7 {[%clk 0:02:54]}  Rg8 {[%clk 0:02:25]} 12. Bh6 {[%clk 0:02:46]}  Qf6 {[%clk 0:02:17]} 13. Qd2 {[%clk 0:02:27]}  dxc3 {[%clk 0:01:54]} 14. Nxc3 {[%clk 0:02:24]}  Rd8 {[%clk 0:01:53]} 15. Bg5 {[%clk 0:02:17]}  Rxd2 {[%clk 0:01:49]} 16. Bxf6 {[%clk 0:02:17]}  Rd3 {[%clk 0:01:50]} 17. Rd1 {[%clk 0:02:14]}  c6 {[%clk 0:01:30]} 18. Rxd3 {[%clk 0:02:08]}  cxd3 {[%clk 0:01:29]} 19. bxc6 {[%clk 0:01:45]}  Nxc6 {[%clk 0:01:27]} 20. Ne4 {[%clk 0:01:39]}  Bd5 {[%clk 0:01:11]} 21. Nfg5 {[%clk 0:01:20]}  h6 {[%clk 0:01:10]} 22. Bb2 {[%clk 0:01:18]}  Bd8 {[%clk 0:01:10]} 23. Bf6 {[%clk 0:00:58]}  hxg5 {[%clk 0:01:06]} 24. Bxd8 {[%clk 0:00:38]}  Bxe4 {[%clk 0:01:06]} 25. Bf6 {[%clk 0:00:37]}  Kd7 {[%clk 0:00:45]} 26. h4 {[%clk 0:00:34]}  Ke6 {[%clk 0:00:38]} 27. hxg5 {[%clk 0:00:29]}  Ne7 {[%clk 0:00:17]} 28. Rh8 {[%clk 0:00:23]}  b5 {[%clk 0:00:16]} 29. f3 {[%clk 0:00:18]}  Bd5 {[%clk 0:00:14]} 30. Bxe7 {[%clk 0:00:16]}  Rxg7 {[%clk 0:00:14]} 31. Bf6 {[%clk 0:00:17]}  Rg6 {[%clk 0:00:13]} 32. Re8+ {[%clk 0:00:16]}  Kd7 {[%clk 0:00:13]} 33. Rd8+ {[%clk 0:00:16]}  Kc6 {[%clk 0:00:13]} 34. Kd2 {[%clk 0:00:13]}  Bxa2 {[%clk 0:00:12]} 35. Kxd3 {[%clk 0:00:10]}  a5 {[%clk 0:00:12]} 36. f4 {[%clk 0:00:07]}  a4 {[%clk 0:00:12]} 37. f5 {[%clk 0:00:07]}  Bb1+ {[%clk 0:00:12]} 38. Kd4 {[%clk 0:00:06]}  Bxf5 {[%clk 0:00:12]} 39. Ra8 {[%clk 0:00:05]}  Be6 {[%clk 0:00:11]} 40. Ra6+ {[%clk 0:00:05]}  Kb7 {[%clk 0:00:11]} 41. Rd6 {[%clk 0:00:05]}  Rg8 {[%clk 0:00:10]} 42. Kc5 {[%clk 0:00:05]}  Rc8+ {[%clk 0:00:10]} 43. Kxb5 {[%clk 0:00:05]}  a3 {[%clk 0:00:10]} 44. Rb6+ {[%clk 0:00:06]}  Kc7 {[%clk 0:00:09]} 45. Be5+ {[%clk 0:00:06]}  Kd7 {[%clk 0:00:09]} 46. Rb7+ {[%clk 0:00:07]}  Ke8 {[%clk 0:00:09]} 47. Ra7 {[%clk 0:00:06]}  a2 {[%clk 0:00:09]} 48. g6 {[%clk 0:00:03]}  fxg6 {[%clk 0:00:08]} 49. Rh7 {[%clk 0:00:03]}  Rc2 {[%clk 0:00:08]} 50. Bf6 {[%clk 0:00:01]}  Bf7 {[%clk 0:00:07]} 51. Rh8+ {[%clk 0:00:01]}  Kd7 {[%clk 0:00:07]} 52. Kb4 {[%clk 0:00:01]}  Ke6 {[%clk 0:00:07]} 53. Bc3 {[%clk 0:00:01]}  Rxc3 {[%clk 0:00:07]} 54. Ra8 {[%clk 0:00:01]}  Rc2 {[%clk 0:00:07]} 55. Kb3 {[%clk 0:00:02]}  Ke5+ {[%clk 0:00:07]} 56. Kxc2 {[%clk 0:00:02]}  Bd5 {[%clk 0:00:07]} 57. Ra5 {[%clk 0:00:01]}  Kd4 {[%clk 0:00:07]} 58. Kd2 {[%clk 0:00:01]}  Bxg2 {[%clk 0:00:06]} 59. Rxa2 {[%clk 0:00:02]}  Be4 {[%clk 0:00:06]} 60. Ra4+ {[%clk 0:00:02]}  Ke5 {[%clk 0:00:06]} 61. Ke3 {[%clk 0:00:03]}  Bf5 {[%clk 0:00:06]} 62. Ra5+ {[%clk 0:00:03]}  Ke6 {[%clk 0:00:05]} 63. Kf4 {[%clk 0:00:03]}  Kd6 {[%clk 0:00:06]} 64. Ra6+ {[%clk 0:00:03]}  Kd5 {[%clk 0:00:06]} 65. Rf6 {[%clk 0:00:03]}  Kd4 {[%clk 0:00:05]} 66. Rf8 {[%clk 0:00:04]}  Kd5 {[%clk 0:00:05]} 67. Re8 {[%clk 0:00:05]}  Kd6 {[%clk 0:00:05]} 68. Re5 {[%clk 0:00:05]}  Kc6 {[%clk 0:00:05]} 69. Ke3 {[%clk 0:00:05]}  Kd6 {[%clk 0:00:05]} 70. Kd4 {[%clk 0:00:06]}  Bc2 {[%clk 0:00:05]} 71. Rg5 {[%clk 0:00:05]}  Bf5 {[%clk 0:00:05]} 72. Rg1 {[%clk 0:00:06]}  Ke6 {[%clk 0:00:05]} 73. Ra1 {[%clk 0:00:06]}  Kf6 {[%clk 0:00:06]} 74. Ra6+ {[%clk 0:00:05]}  Kg5 {[%clk 0:00:06]} 75. Ke5 {[%clk 0:00:06]}  Kg4 {[%clk 0:00:06]} 76. Ra3 {[%clk 0:00:06]}  Bc2 {[%clk 0:00:05]} 77. Rc3 {[%clk 0:00:06]}  Bb1 {[%clk 0:00:05]} 78. Rc1 {[%clk 0:00:05]}  Bd3 {[%clk 0:00:05]} 79. Rd1 {[%clk 0:00:06]}  Bf5 {[%clk 0:00:05]} 80. Rg1+ {[%clk 0:00:06]}  Kf3 {[%clk 0:00:04]} 81. Rf1+ {[%clk 0:00:05]}  Ke3 {[%clk 0:00:05]} 82. Rf4 {[%clk 0:00:05]}  Bd3 {[%clk 0:00:04]} 83. Rg4 {[%clk 0:00:04]}  Bf5 {[%clk 0:00:04]} 84. Rg3+ {[%clk 0:00:04]}  Kd2 {[%clk 0:00:03]} 85. Kd4 {[%clk 0:00:04]}  Kc2 {[%clk 0:00:03]} 86. Kc4 {[%clk 0:00:04]}  Kd2 {[%clk 0:00:03]} 87. Kd4 {[%clk 0:00:05]}  Kc2 {[%clk 0:00:04]} 88. Rg2+ {[%clk 0:00:05]}  Kb3 {[%clk 0:00:03]} 89. Rg3+ {[%clk 0:00:05]}  Kc2 {[%clk 0:00:03]} 1/2-1/2


[Site "https://www.chess.com"]

[Event "Titled Tuesday Blitz May 30 Late 2023"]
[White "Torres Hernandez, Leslie Carolin"]
[Black "deloewre"]
[WhiteFideId "8400504"]
[WhiteElo "1920"]
[BlackElo "2107"]
[Result "1-0"]
[Round "05"]
[TimeControl "180+2"]
[Date "2023.05.31"]
[WhiteClock "0:00:05"]
[BlackClock "0:00:05"]

1. e4 {[%clk 0:02:56]}  c6 {[%clk 0:02:58]} 2. Nf3 {[%clk 0:02:54]}  d5 {[%clk 0:02:58]} 3. exd5 {[%clk 0:02:55]}  cxd5 {[%clk 0:02:57]} 4. Ne5 {[%clk 0:02:56]}  Nc6 {[%clk 0:02:52]} 5. Bb5 {[%clk 0:02:54]}  Bd7 {[%clk 0:02:49]} 6. Nxd7 {[%clk 0:02:54]}  Qxd7 {[%clk 0:02:46]} 7. d4 {[%clk 0:02:55]}  e6 {[%clk 0:02:41]} 8. O-O {[%clk 0:02:49]}  a6 {[%clk 0:02:38]} 9. Be2 {[%clk 0:02:47]}  Bd6 {[%clk 0:02:37]} 10. c3 {[%clk 0:02:46]}  Nf6 {[%clk 0:02:35]} 11. Nd2 {[%clk 0:02:44]}  O-O {[%clk 0:02:33]} 12. Nf3 {[%clk 0:02:42]}  Rac8 {[%clk 0:02:29]} 13. Re1 {[%clk 0:02:42]}  Bb8 {[%clk 0:02:27]} 14. Bg5 {[%clk 0:02:39]}  Ne4 {[%clk 0:02:25]} 15. Bh4 {[%clk 0:02:39]}  b5 {[%clk 0:02:20]} 16. a4 {[%clk 0:02:38]}  bxa4 {[%clk 0:01:54]} 17. Bxa6 {[%clk 0:02:37]}  Rc7 {[%clk 0:01:50]} 18. Bb5 {[%clk 0:02:31]}  Rb7 {[%clk 0:01:45]} 19. Qxa4 {[%clk 0:02:31]}  Rc8 {[%clk 0:01:38]} 20. Ba6 {[%clk 0:02:23]}  Ra7 {[%clk 0:01:34]} 21. Bxc8 {[%clk 0:02:20]}  Qxc8 {[%clk 0:01:32]} 22. Qc2 {[%clk 0:02:16]}  Rb7 {[%clk 0:01:31]} 23. Nd2 {[%clk 0:02:10]}  Nxd4 {[%clk 0:01:29]} 24. Qc1 {[%clk 0:01:56]}  Nxd2 {[%clk 0:01:27]} 25. Qxd2 {[%clk 0:01:57]}  Nb3 {[%clk 0:01:26]} 26. Qc2 {[%clk 0:01:43]}  Nxa1 {[%clk 0:01:25]} 27. Rxa1 {[%clk 0:01:44]}  h6 {[%clk 0:01:20]} 28. Bg3 {[%clk 0:01:42]}  Bxg3 {[%clk 0:01:17]} 29. hxg3 {[%clk 0:01:42]}  Rb8 {[%clk 0:01:15]} 30. Rb1 {[%clk 0:01:39]}  Qc4 {[%clk 0:01:13]} 31. b3 {[%clk 0:01:36]}  Qc5 {[%clk 0:01:11]} 32. Rc1 {[%clk 0:01:33]}  Qb5 {[%clk 0:01:09]} 33. Rb1 {[%clk 0:01:30]}  e5 {[%clk 0:01:07]} 34. Qd2 {[%clk 0:01:25]}  Kh7 {[%clk 0:01:04]} 35. b4 {[%clk 0:01:22]}  Qc4 {[%clk 0:01:02]} 36. Qe3 {[%clk 0:01:16]}  f6 {[%clk 0:00:57]} 37. Rd1 {[%clk 0:01:09]}  Rc8 {[%clk 0:00:55]} 38. Qf3 {[%clk 0:01:05]}  Qxc3 {[%clk 0:00:53]} 39. Qf5+ {[%clk 0:01:04]}  Kh8 {[%clk 0:00:50]} 40. Rxd5 {[%clk 0:01:04]}  Re8 {[%clk 0:00:42]} 41. b5 {[%clk 0:01:00]}  Qc1+ {[%clk 0:00:37]} 42. Kh2 {[%clk 0:01:00]}  Qg5 {[%clk 0:00:35]} 43. Qd7 {[%clk 0:00:48]}  Ra8 {[%clk 0:00:28]} 44. b6 {[%clk 0:00:45]}  Qh5+ {[%clk 0:00:27]} 45. Qh3 {[%clk 0:00:41]}  Qxh3+ {[%clk 0:00:24]} 46. Kxh3 {[%clk 0:00:42]}  Rb8 {[%clk 0:00:22]} 47. Rd6 {[%clk 0:00:39]}  Kg8 {[%clk 0:00:20]} 48. Kg4 {[%clk 0:00:39]}  Kf7 {[%clk 0:00:19]} 49. Kf5 {[%clk 0:00:36]}  g6+ {[%clk 0:00:18]} 50. Ke4 {[%clk 0:00:34]}  Ke7 {[%clk 0:00:17]} 51. Kd5 {[%clk 0:00:34]}  Rb7 {[%clk 0:00:15]} 52. Re6+ {[%clk 0:00:30]}  Kf7 {[%clk 0:00:13]} 53. Rc6 {[%clk 0:00:30]}  Ke7 {[%clk 0:00:10]} 54. Re6+ {[%clk 0:00:12]}  Kf7 {[%clk 0:00:08]} 55. Rd6 {[%clk 0:00:09]}  Rb8 {[%clk 0:00:07]} 56. Kc6 {[%clk 0:00:08]}  Ke7 {[%clk 0:00:05]} 57. Kc7 {[%clk 0:00:05]} 1-0


[Site "https://www.chess.com"]

[Event "Titled Tuesday Blitz May 30 Late 2023"]
[White "campochess"]
[Black "Kujawski, Adam"]
[BlackFideId "1100920"]
[WhiteElo "2087"]
[BlackElo "2054"]
[Result "0-1"]
[Round "05"]
[TimeControl "180+2"]
[Date "2023.05.31"]
[WhiteClock "0:00:03"]
[BlackClock "0:00:22"]

1. d4 {[%clk 0:03:00]}  Nf6 {[%clk 0:02:41]} 2. Bg5 {[%clk 0:03:00]}  c5 {[%clk 0:02:38]} 3. d5 {[%clk 0:02:58]}  Qb6 {[%clk 0:02:37]} 4. Nc3 {[%clk 0:02:58]}  Qxb2 {[%clk 0:02:37]} 5. Bd2 {[%clk 0:02:57]}  Qb6 {[%clk 0:02:34]} 6. e4 {[%clk 0:02:56]}  d6 {[%clk 0:02:34]} 7. f4 {[%clk 0:02:52]}  e5 {[%clk 0:02:34]} 8. fxe5 {[%clk 0:02:49]}  dxe5 {[%clk 0:02:35]} 9. Nf3 {[%clk 0:02:49]}  Bd6 {[%clk 0:02:34]} 10. Be2 {[%clk 0:02:38]}  O-O {[%clk 0:02:33]} 11. Rb1 {[%clk 0:02:38]}  Qd8 {[%clk 0:02:33]} 12. O-O {[%clk 0:02:38]}  b6 {[%clk 0:02:28]} 13. Qe1 {[%clk 0:02:32]}  Nbd7 {[%clk 0:02:24]} 14. Qh4 {[%clk 0:02:27]}  Kh8 {[%clk 0:02:19]} 15. Nb5 {[%clk 0:02:21]}  Bb8 {[%clk 0:02:14]} 16. Bg5 {[%clk 0:02:11]}  a6 {[%clk 0:02:09]} 17. Nc3 {[%clk 0:02:08]}  b5 {[%clk 0:02:09]} 18. Nd2 {[%clk 0:02:05]}  Bd6 {[%clk 0:01:58]} 19. Nd1 {[%clk 0:01:58]}  Be7 {[%clk 0:01:47]} 20. Ne3 {[%clk 0:01:57]}  Nxd5 {[%clk 0:01:39]} 21. Bxe7 {[%clk 0:01:42]}  Qxe7 {[%clk 0:01:30]} 22. Qxe7 {[%clk 0:01:41]}  Nxe7 {[%clk 0:01:30]} 23. Nd5 {[%clk 0:01:36]}  Nxd5 {[%clk 0:01:29]} 24. exd5 {[%clk 0:01:35]}  Nf6 {[%clk 0:01:26]} 25. c4 {[%clk 0:01:35]}  bxc4 {[%clk 0:01:24]} 26. Nxc4 {[%clk 0:01:35]}  Nxd5 {[%clk 0:01:19]} 27. Nxe5 {[%clk 0:01:34]}  Be6 {[%clk 0:01:19]} 28. Bf3 {[%clk 0:01:30]}  Rab8 {[%clk 0:01:16]} 29. Rbc1 {[%clk 0:01:27]}  Rfc8 {[%clk 0:01:14]} 30. Nc4 {[%clk 0:01:24]}  Nb4 {[%clk 0:01:07]} 31. a3 {[%clk 0:01:19]}  Nd3 {[%clk 0:01:02]} 32. Rc3 {[%clk 0:01:18]}  Bxc4 {[%clk 0:00:59]} 33. Rxc4 {[%clk 0:01:17]}  Ne5 {[%clk 0:00:59]} 34. Ra4 {[%clk 0:01:14]}  Nxf3+ {[%clk 0:00:58]} 35. Rxf3 {[%clk 0:01:12]}  c4 {[%clk 0:00:58]} 36. Rc3 {[%clk 0:01:10]}  g6 {[%clk 0:00:49]} 37. Raxc4 {[%clk 0:01:08]}  Rxc4 {[%clk 0:00:49]} 38. Rxc4 {[%clk 0:01:09]}  Rb6 {[%clk 0:00:49]} 39. Kf2 {[%clk 0:01:06]}  Kg7 {[%clk 0:00:49]} 40. a4 {[%clk 0:01:05]}  h5 {[%clk 0:00:49]} 41. h4 {[%clk 0:01:04]}  Rb2+ {[%clk 0:00:47]} 42. Kg3 {[%clk 0:01:03]}  Ra2 {[%clk 0:00:48]} 43. Kf3 {[%clk 0:00:59]}  Ra3+ {[%clk 0:00:47]} 44. Kf4 {[%clk 0:00:58]}  Rb3 {[%clk 0:00:46]} 45. Ke5 {[%clk 0:00:45]}  Rg3 {[%clk 0:00:44]} 46. Rc6 {[%clk 0:00:38]}  Rxg2 {[%clk 0:00:44]} 47. Rxa6 {[%clk 0:00:37]}  Rg4 {[%clk 0:00:44]} 48. a5 {[%clk 0:00:36]}  Rxh4 {[%clk 0:00:44]} 49. Rb6 {[%clk 0:00:36]}  Ra4 {[%clk 0:00:43]} 50. a6 {[%clk 0:00:36]}  h4 {[%clk 0:00:44]} 51. Kd5 {[%clk 0:00:34]}  h3 {[%clk 0:00:39]} 52. Rb3 {[%clk 0:00:31]}  Rxa6 {[%clk 0:00:36]} 53. Rxh3 {[%clk 0:00:31]}  Re6 {[%clk 0:00:36]} 54. Rh1 {[%clk 0:00:28]}  g5 {[%clk 0:00:35]} 55. Rh2 {[%clk 0:00:28]}  Kg6 {[%clk 0:00:35]} 56. Rh1 {[%clk 0:00:27]}  Re2 {[%clk 0:00:34]} 57. Kd4 {[%clk 0:00:25]}  f6 {[%clk 0:00:34]} 58. Kd3 {[%clk 0:00:25]}  Re5 {[%clk 0:00:34]} 59. Rh2 {[%clk 0:00:23]}  g4 {[%clk 0:00:35]} 60. Rh1 {[%clk 0:00:23]}  Kg5 {[%clk 0:00:34]} 61. Rf1 {[%clk 0:00:18]}  f5 {[%clk 0:00:34]} 62. Rh1 {[%clk 0:00:17]}  g3 {[%clk 0:00:32]} 63. Rh8 {[%clk 0:00:16]}  f4 {[%clk 0:00:27]} 64. Rg8+ {[%clk 0:00:15]}  Kf5 {[%clk 0:00:26]} 65. Rf8+ {[%clk 0:00:15]}  Kg4 {[%clk 0:00:25]} 66. Kd4 {[%clk 0:00:15]}  Re7 {[%clk 0:00:24]} 67. Kd3 {[%clk 0:00:10]}  g2 {[%clk 0:00:23]} 68. Kc4 {[%clk 0:00:07]}  Kg3 {[%clk 0:00:22]} 69. Rg8+ {[%clk 0:00:04]}  Kf2 {[%clk 0:00:22]} 70. Rf8 {[%clk 0:00:03]}  f3 {[%clk 0:00:22]} 0-1


[Site "https://www.chess.com"]

[Event "Titled Tuesday Blitz May 30 Late 2023"]
[White "Maluco_do_Natal_00"]
[Black "Smiechu"]
[WhiteElo "2072"]
[BlackElo "2346"]
[Result "0-1"]
[Round "05"]
[TimeControl "180+2"]
[Date "2023.05.31"]
[WhiteClock "0:00:01"]
[BlackClock "0:01:18"]

1. e4 {[%clk 0:03:00]}  c5 {[%clk 0:02:59]} 2. Nf3 {[%clk 0:03:00]}  g6 {[%clk 0:03:00]} 3. d4 {[%clk 0:03:01]}  cxd4 {[%clk 0:03:01]} 4. Nxd4 {[%clk 0:03:01]}  Nc6 {[%clk 0:03:01]} 5. Nc3 {[%clk 0:03:01]}  Bg7 {[%clk 0:03:02]} 6. Be3 {[%clk 0:03:02]}  Nf6 {[%clk 0:03:02]} 7. Bc4 {[%clk 0:03:00]}  O-O {[%clk 0:03:03]} 8. Bb3 {[%clk 0:02:58]}  d6 {[%clk 0:03:03]} 9. f3 {[%clk 0:02:51]}  Bd7 {[%clk 0:03:03]} 10. Qd2 {[%clk 0:02:51]}  Rc8 {[%clk 0:03:04]} 11. O-O-O {[%clk 0:02:51]}  Nxd4 {[%clk 0:03:04]} 12. Bxd4 {[%clk 0:02:50]}  b5 {[%clk 0:03:05]} 13. g4 {[%clk 0:02:31]}  a5 {[%clk 0:03:03]} 14. a3 {[%clk 0:01:44]}  b4 {[%clk 0:03:03]} 15. axb4 {[%clk 0:01:43]}  axb4 {[%clk 0:03:04]} 16. Nd5 {[%clk 0:01:39]}  Nxd5 {[%clk 0:03:04]} 17. exd5 {[%clk 0:01:36]}  Bxd4 {[%clk 0:03:01]} 18. Qxd4 {[%clk 0:01:35]}  Qa5 {[%clk 0:03:01]} 19. h4 {[%clk 0:01:24]}  Ba4 {[%clk 0:03:01]} 20. Kd2 {[%clk 0:00:51]}  Bxb3 {[%clk 0:02:53]} 21. cxb3 {[%clk 0:00:51]}  Rc5 {[%clk 0:02:52]} 22. Ke3 {[%clk 0:00:40]}  e5 {[%clk 0:02:37]} 23. dxe6 {[%clk 0:00:24]}  Re5+ {[%clk 0:02:37]} 24. Kf2 {[%clk 0:00:20]}  fxe6 {[%clk 0:02:36]} 25. Qxd6 {[%clk 0:00:13]}  Qa8 {[%clk 0:02:04]} 26. Rd3 {[%clk 0:00:11]}  Qa7+ {[%clk 0:01:47]} 27. Kg3 {[%clk 0:00:08]}  Re3 {[%clk 0:01:42]} 28. Qd4 {[%clk 0:00:06]}  Rfxf3+ {[%clk 0:01:38]} 29. Kg2 {[%clk 0:00:01]}  Rg3+ {[%clk 0:01:35]} 30. Kh2 {[%clk 0:00:02]}  Rh3+ {[%clk 0:01:26]} 31. Kg2 {[%clk 0:00:02]}  Reg3+ {[%clk 0:01:26]} 32. Kf2 {[%clk 0:00:02]}  Qf7+ {[%clk 0:01:24]} 33. Ke2 {[%clk 0:00:01]}  Rg2+ {[%clk 0:01:19]} 34. Kd1 {[%clk 0:00:01]}  Rxh1+ {[%clk 0:01:18]} 0-1


[Site "https://www.chess.com"]

[Event "Titled Tuesday Blitz May 30 Late 2023"]
[White "Stead, Kerry"]
[Black "Rose, Felix"]
[WhiteFideId "3202577"]
[BlackFideId "5105722"]
[WhiteElo "1997"]
[BlackElo "2039"]
[Result "0-1"]
[Round "05"]
[TimeControl "180+2"]
[Date "2023.05.31"]
[WhiteClock "0:01:04"]
[BlackClock "0:00:33"]

1. d4 {[%clk 0:02:59]}  d5 {[%clk 0:02:39]} 2. e4 {[%clk 0:02:58]}  e6 {[%clk 0:02:32]} 3. Be3 {[%clk 0:02:46]}  Nf6 {[%clk 0:02:28]} 4. e5 {[%clk 0:02:45]}  Nfd7 {[%clk 0:02:28]} 5. f4 {[%clk 0:02:43]}  h5 {[%clk 0:02:27]} 6. Nf3 {[%clk 0:02:41]}  b6 {[%clk 0:02:26]} 7. Bd3 {[%clk 0:02:40]}  Ba6 {[%clk 0:02:24]} 8. O-O {[%clk 0:02:37]}  g6 {[%clk 0:02:20]} 9. c3 {[%clk 0:02:32]}  Bxd3 {[%clk 0:02:20]} 10. Qxd3 {[%clk 0:02:32]}  c5 {[%clk 0:02:17]} 11. Nbd2 {[%clk 0:02:30]}  Nc6 {[%clk 0:02:15]} 12. Rad1 {[%clk 0:02:28]}  Be7 {[%clk 0:02:14]} 13. Rf2 {[%clk 0:02:27]}  Qc7 {[%clk 0:02:13]} 14. Nf1 {[%clk 0:02:26]}  a5 {[%clk 0:01:40]} 15. a3 {[%clk 0:02:24]}  c4 {[%clk 0:01:38]} 16. Qc2 {[%clk 0:02:14]}  a4 {[%clk 0:01:33]} 17. Bd2 {[%clk 0:02:11]}  b5 {[%clk 0:01:33]} 18. Ne3 {[%clk 0:01:58]}  h4 {[%clk 0:01:30]} 19. g4 {[%clk 0:01:57]}  hxg3 {[%clk 0:01:27]} 20. hxg3 {[%clk 0:01:57]}  O-O-O {[%clk 0:01:26]} 21. Rh2 {[%clk 0:01:52]}  Rxh2 {[%clk 0:01:24]} 22. Kxh2 {[%clk 0:01:52]}  Rh8+ {[%clk 0:01:24]} 23. Kg2 {[%clk 0:01:53]}  Qd8 {[%clk 0:01:23]} 24. Rh1 {[%clk 0:01:53]}  Rxh1 {[%clk 0:01:21]} 25. Kxh1 {[%clk 0:01:54]}  Qh8+ {[%clk 0:01:22]} 26. Kg2 {[%clk 0:01:54]}  Qh5 {[%clk 0:01:15]} 27. Qd1 {[%clk 0:01:48]}  f5 {[%clk 0:01:12]} 28. Qh1 {[%clk 0:01:46]}  Qxh1+ {[%clk 0:01:08]} 29. Kxh1 {[%clk 0:01:46]}  Nd8 {[%clk 0:01:08]} 30. g4 {[%clk 0:01:45]}  Nf7 {[%clk 0:01:08]} 31. g5 {[%clk 0:01:44]}  Kd8 {[%clk 0:01:02]} 32. Kg2 {[%clk 0:01:44]}  Nf8 {[%clk 0:01:02]} 33. Nc2 {[%clk 0:01:42]}  Kd7 {[%clk 0:00:58]} 34. Nh4 {[%clk 0:01:41]}  Nd8 {[%clk 0:00:57]} 35. Kf3 {[%clk 0:01:40]}  Nc6 {[%clk 0:00:58]} 36. Ke2 {[%clk 0:01:40]}  Na5 {[%clk 0:00:56]} 37. Be3 {[%clk 0:01:37]}  Nb3 {[%clk 0:00:56]} 38. Nf3 {[%clk 0:01:34]}  Kc6 {[%clk 0:00:50]} 39. Nh4 {[%clk 0:01:34]}  Kd7 {[%clk 0:00:47]} 40. Bf2 {[%clk 0:01:33]}  Ke8 {[%clk 0:00:48]} 41. Be3 {[%clk 0:01:33]}  Kf7 {[%clk 0:00:48]} 42. Bf2 {[%clk 0:01:33]}  Nd7 {[%clk 0:00:48]} 43. Be3 {[%clk 0:01:33]}  Nb6 {[%clk 0:00:46]} 44. Bf2 {[%clk 0:01:30]}  Nc1+ {[%clk 0:00:45]} 45. Kf3 {[%clk 0:01:18]}  Nd3 {[%clk 0:00:45]} 46. Be3 {[%clk 0:01:14]}  Nxb2 {[%clk 0:00:45]} 47. Ke2 {[%clk 0:01:09]}  Nd3 {[%clk 0:00:39]} 48. Ne1 {[%clk 0:01:04]}  Nxe1 {[%clk 0:00:37]} 49. Kxe1 {[%clk 0:01:05]}  Bxa3 {[%clk 0:00:38]} 50. Kd1 {[%clk 0:01:04]}  Bb2 {[%clk 0:00:36]} 51. Kc2 {[%clk 0:01:05]}  a3 {[%clk 0:00:36]} 52. Bd2 {[%clk 0:01:05]}  Na4 {[%clk 0:00:35]} 53. Nf3 {[%clk 0:01:04]}  a2 {[%clk 0:00:33]} 0-1


[Site "https://www.chess.com"]